[Event "WYCC 2018 G14"]
[Site "Halkidiki"]
[Date "2018.10.28"]
[Round "9"]
[White "Nurgali, Nazerke"]
[Black "Hrebenshchykova, Yelyzaveta"]
[Result "0-1"]
[ECO "E92"]
[WhiteElo "2263"]
[BlackElo "1968"]
[Annotator "NA"]
[PlyCount "118"]
[EventDate "2018.10.20"]
[EventType "swiss"]
[EventCountry "GRE"]
[SourceTitle "playchess.com"]
[Source "ChessBase"]
[SourceQuality "1"]
[TimeControl "40/5400+30:1800+30"]

1. d4 {[%emt 0:00:00]} Nf6 {[%emt 0:00:00]} 2. c4 {[%emt 0:00:00]} g6 {[%emt 0:00:00]} 3. Nf3 {[%emt 0:00:02]} Bg7 {[%emt 0:00:00]} 4. Nc3 {[%emt 0:00:27]} O-O {[%emt 0:00:06]} 5. e4 {[%emt 0:00:04]} d6 {[%emt 0:00:05]} 6. Be2 {[%emt 0:00:18]} e5 {[%emt 0:00:09]} 7. dxe5 {[%emt 0:00:16]} dxe5 {[%emt 0:00:06]} 8. Qxd8 {[%emt 0:00:05]} Rxd8 {[%emt 0:00:07]} 9. Bg5 {[%emt 0:00:04]} Re8 {[%emt 0:00:07]} 10. O-O-O {[%emt 0:00:18]} h6 {[%emt 0:00:15]} 11. Bh4 {[%emt 0:01:43]} Na6 {[%emt 0:11:28]} 12. Ne1 {[%emt 0:03:08]} Nc5 {[%emt 0:03:31]} 13. f3 {[%emt 0:00:56]} c6 {[%emt 0:00:09]} 14. Nc2 {[%emt 0:01:02]} Ne6 {[%emt 0:12:10]} 15. Rd6 {[%emt 0:07:04]} Nh5 {[%emt 0:07:18]} 16. Rd2 {[%emt 0:04:06]} Nhf4 {[%emt 0:02:34]} 17. Bf1 {[%emt 0:00:53]} Nd4 {[%emt 0:01:52]} 18. Bf2 {[%emt 0:02:26]} Nfe6 $11 {[%emt 0:02:51]} 19. Ne2 {[%emt 0:01:38]} Rd8 {[%emt 0:04:05]} 20. Nexd4 {[%emt 0:01:51]} Nxd4 {[%emt 0:12:37]} 21. Nxd4 {[%emt 0:06:11]} exd4 {[%emt 0:02:40]} 22. Bd3 {[%emt 0:00:33]} c5 {[%emt 0:01:55]} 23. f4 {[%emt 0:01:52]} b6 {[%emt 0:00:33]} 24. h4 {[%emt 0:02:40]} h5 {[%emt 0:00:31]} 25. Re2 {[%emt 0:00:23]} Bh6 {[%emt 0:02:29]} 26. Bg3 {[%emt 0:01:40]} Re8 {[%emt 0:01:56]} 27. Kc2 {[%emt 0:00:42]} Bg4 {[%emt 0:06:18]} 28. Rf2 {[%emt 0:04:09]} Re7 {[%emt 0:00:07]} 29. Rb1 {[%emt 0:01:55]} Rae8 {[%emt 0:02:29]} 30. Bh2 {[%emt 0:01:23]} Rxe4 {[%emt 0:10:22]} 31. Bxe4 {[%emt 0:00:25]} Rxe4 {[%emt 0:00:03]} 32. Kd2 {[%emt 0:00:51]} f5 {[%emt 0:01:22]} 33. b4 {[%emt 0:00:38]} cxb4 {[%emt 0:01:41]} 34. Rxb4 {[%emt 0:00:39]} Bf8 {[%emt 0:00:06]} 35. Rb3 {[%emt 0:08:11]} Bc5 {[%emt 0:00:15]} 36. Bg1 {[%emt 0:02:29]} a5 {[%emt 0:01:19]} 37. a3 {[%emt 0:00:39]} Re3 {[%emt 0:02:57]} 38. Rd3 {[%emt 0:00:35]} a4 {[%emt 0:02:14]} 39. g3 {[%emt 0:00:58]} Kf7 {[%emt 0:01:48]} 40. Rh2 {[%emt 0:00:00]} Re4 {[%emt 0:00:00]} 41. Rg2 {[%emt 0:05:33]} Ke6 {[%emt 0:05:58]} 42. Rf2 {[%emt 0:04:42]} Kd7 {[%emt 0:00:52]} 43. Rg2 {[%emt 0:00:59]} Kc6 {[%emt 0:00:19]} 44. Bh2 {[%emt 0:07:11]} b5 {[%emt 0:02:13]} 45. cxb5+ {[%emt 0:00:04]} Kxb5 {[%emt 0:00:03]} 46. Bg1 {[%emt 0:02:42]} Kc4 {[%emt 0:00:18]} 47. Rh2 {[%emt 0:00:06]} Bb6 {[%emt 0:02:21]} 48. Rg2 {[%emt 0:02:23]} Bh3 {[%emt 0:10:47]} 49. Rh2 {[%emt 0:07:39]} Bf1 {[%emt 0:01:24]} 50. Bxd4 {[%emt 0:06:05]} Rxd4 {[%emt 0:06:02]} 51. Rxd4+ {[%emt 0:00:04]} Bxd4 {[%emt 0:00:03]} 52. Rh1 {[%emt 0:00:31]} Bc3+ {[%emt 0:00:09]} 53. Ke3 {[%emt 0:00:18]} Bd3 {[%emt 0:00:15]} 54. Rd1 {[%emt 0:03:35]} Be4 {[%emt 0:00:07]} 55. Rd6 {[%emt 0:00:22]} Kb3 {[%emt 0:01:51]} 56. Rxg6 {[%emt 0:00:04]} Kxa3 {[%emt 0:00:04]} 57. Rg5 {[%emt 0:00:18]} Kb3 {[%emt 0:01:43]} 58. Rxh5 {[%emt 0:00:05]} a3 {[%emt 0:00:04]} 59. Rh7 {[%emt 0:00:18]} Ba5 {[%emt 0:01:25]} 0-1

[Event "WYCC 2018 G14"]
[Site "Halkidiki"]
[Date "2018.10.28"]
[Round "9"]
[White "Song, Yuxin"]
[Black "Stepanyan, Eva"]
[Result "1-0"]
[ECO "D38"]
[WhiteElo "2178"]
[BlackElo "1981"]
[Annotator "NA"]
[PlyCount "119"]
[EventDate "2018.10.20"]
[EventType "swiss"]
[EventCountry "GRE"]
[SourceTitle "playchess.com"]
[Source "ChessBase"]
[SourceQuality "1"]
[TimeControl "40/5400+30:1800+30"]

1. d4 {[%emt 0:00:00]} Nf6 {[%emt 0:00:00]} 2. c4 {[%emt 0:00:00]} e6 {[%emt 0:00:00]} 3. Nf3 {[%emt 0:00:00]} d5 {[%emt 0:00:27]} 4. Nc3 {[%emt 0:00:24]} Bb4 {[%emt 0:00:18]} 5. Qc2 {[%emt 0:03:31]} O-O {[%emt 0:02:18]} 6. a3 {[%emt 0:02:58]} Be7 {[%emt 0:10:21]} 7. c5 {[%emt 0:04:26]} b6 {[%emt 0:04:29]} 8. b4 {[%emt 0:01:11]} a5 {[%emt 0:01:54]} 9. Rb1 {[%emt 0:01:38]} axb4 {[%emt 0:01:24]} 10. axb4 {[%emt 0:00:05]} bxc5 {[%emt 0:01:02]} 11. bxc5 {[%emt 0:00:22]} Ba6 {[%emt 0:01:54]} 12. h3 {[%emt 0:15:11]} Nc6 {[%emt 0:08:23]} 13. g4 {[%emt 0:00:58]} Qd7 {[%emt 0:03:12]} 14. Bg2 {[%emt 0:01:02]} Rfb8 {[%emt 0:02:33]} 15. Bb2 {[%emt 0:02:06]} Rb4 {[%emt 0:05:47]} 16. g5 {[%emt 0:18:14]} Nh5 {[%emt 0:23:27]} 17. Qd2 {[%emt 0:01:10]} Rab8 {[%emt 0:03:05]} 18. O-O {[%emt 0:02:44]} Na5 {[%emt 0:03:46]} 19. Na2 {[%emt 0:04:09]} R4b5 {[%emt 0:04:32]} 20. Ne5 {[%emt 0:03:14]} Qd8 {[%emt 0:00:39]} 21. h4 {[%emt 0:11:36]} f6 {[%emt 0:03:00]} 22. gxf6 {[%emt 0:00:40]} Bxf6 {[%emt 0:04:59]} 23. Nc3 {[%emt 0:01:46]} Rb4 {[%emt 0:03:32]} 24. Na2 {[%emt 0:02:05]} R4b5 {[%emt 0:07:17]} 25. Nc3 {[%emt 0:00:01]} Rb4 {[%emt 0:03:02]} 26. Ba3 {[%emt 0:09:34]} Rxb1 {[%emt 0:00:35]} 27. Nxb1 {[%emt 0:00:01]} Nc4 {[%emt 0:00:46]} 28. Nxc4 {[%emt 0:00:01]} Bxc4 {[%emt 0:00:05]} 29. Qe3 {[%emt 0:00:01]} Bxh4 {[%emt 0:00:42]} 30. Qxe6+ {[%emt 0:00:12]} Kh8 {[%emt 0:00:06]} 31. Qe5 {[%emt 0:03:14]} Nf6 {[%emt 0:00:53]} 32. Bf3 {[%emt 0:04:00]} Nd7 {[%emt 0:00:43]} 33. Qf5 {[%emt 0:03:40]} Qg5+ {[%emt 0:00:18]} 34. Qxg5 {[%emt 0:00:01]} Bxg5 {[%emt 0:00:02]} 35. Bc1 {[%emt 0:00:29]} Bxc1 {[%emt 0:00:50]} 36. Rxc1 {[%emt 0:00:00]} Nf6 {[%emt 0:00:42]} 37. Nd2 {[%emt 0:00:14]} Bb5 {[%emt 0:00:49]} 38. e4 {[%emt 0:02:25]} dxe4 {[%emt 0:00:06]} 39. Nxe4 {[%emt 0:00:01]} Bc6 {[%emt 0:00:35]} 40. Ng5 {[%emt 0:00:00]} Bxf3 {[%emt 0:00:00]} 41. Nxf3 {[%emt 0:00:39]} Rd8 {[%emt 0:06:45]} 42. Ra1 {[%emt 0:04:39]} Kg8 {[%emt 0:01:49]} 43. Kg2 {[%emt 0:01:44]} Nd5 {[%emt 0:01:13]} 44. Kg3 {[%emt 0:01:37]} h6 {[%emt 0:07:55]} 45. Ra6 {[%emt 0:01:05]} Nb4 {[%emt 0:04:59]} 46. Ra7 {[%emt 0:02:14]} Nc6 {[%emt 0:01:58]} 47. Rxc7 {[%emt 0:00:26]} Nxd4 {[%emt 0:00:03]} 48. c6 {[%emt 0:00:11]} Nxf3 {[%emt 0:04:46]} 49. Rd7 {[%emt 0:00:46]} Rc8 {[%emt 0:05:21]} 50. c7 {[%emt 0:00:02]} Kh7 {[%emt 0:00:07]} 51. Kxf3 {[%emt 0:00:12]} h5 {[%emt 0:00:32]} 52. Ke4 {[%emt 0:00:48]} h4 {[%emt 0:00:13]} 53. Kd5 {[%emt 0:00:05]} Kh6 {[%emt 0:01:05]} 54. Kc6 {[%emt 0:00:35]} g5 {[%emt 0:00:17]} 55. Rd8 {[%emt 0:00:56]} Rxc7+ {[%emt 0:00:15]} 56. Kxc7 {[%emt 0:00:03]} g4 {[%emt 0:00:12]} 57. Rg8 {[%emt 0:00:42]} Kh5 {[%emt 0:00:05]} 58. Kd6 {[%emt 0:00:08]} g3 {[%emt 0:02:06]} 59. fxg3 {[%emt 0:00:08]} h3 {[%emt 0:00:09]} 60. Ke5 {[%emt 0:00:13]} 1-0

[Event "WYCC 2018 G14"]
[Site "Halkidiki"]
[Date "2018.10.28"]
[Round "9"]
[White "Galvan Cipriani, Viviana"]
[Black "Zeliantsova, Kseniya"]
[Result "1/2-1/2"]
[ECO "A16"]
[WhiteElo "2109"]
[BlackElo "1804"]
[Annotator "NA"]
[PlyCount "117"]
[EventDate "2018.10.20"]
[EventType "swiss"]
[EventCountry "GRE"]
[SourceTitle "playchess.com"]
[Source "ChessBase"]
[SourceQuality "1"]
[TimeControl "40/5400+30:1800+30"]

1. c4 {[%emt 0:00:00]} Nf6 {[%emt 0:00:00]} 2. g3 {[%emt 0:00:17]} d5 {[%emt 0:00:00]} 3. cxd5 {[%emt 0:00:20]} Nxd5 {[%emt 0:00:25]} 4. Bg2 {[%emt 0:00:04]} g6 {[%emt 0:00:16]} 5. Nc3 {[%emt 0:01:36]} Nb6 {[%emt 0:00:06]} 6. Nf3 {[%emt 0:03:47]} Bg7 {[%emt 0:00:40]} 7. d3 {[%emt 0:00:38]} Nc6 {[%emt 0:01:47]} 8. Be3 {[%emt 0:02:15]} O-O {[%emt 0:04:05]} 9. Rc1 {[%emt 0:01:39]} Nd5 {[%emt 0:06:24]} 10. Bd2 {[%emt 0:00:24]} h6 {[%emt 0:14:07]} 11. O-O {[%emt 0:03:50]} Be6 {[%emt 0:02:36]} 12. a3 {[%emt 0:03:06]} Kh7 {[%emt 0:07:11]} 13. Qc2 {[%emt 0:13:33]} Rb8 {[%emt 0:12:11]} 14. Rfd1 {[%emt 0:06:16]} Nb6 {[%emt 0:10:56]} 15. b4 {[%emt 0:01:20]} a6 {[%emt 0:01:59]} 16. Ne4 {[%emt 0:14:09]} Bd5 {[%emt 0:02:11]} 17. Nc5 {[%emt 0:11:59]} Bxf3 {[%emt 0:00:44]} 18. Bxf3 {[%emt 0:00:29]} Nd4 {[%emt 0:00:38]} 19. Qa2 {[%emt 0:00:17]} Nxf3+ {[%emt 0:00:10]} 20. exf3 {[%emt 0:00:04]} Nd5 {[%emt 0:02:44]} 21. d4 {[%emt 0:07:19]} c6 {[%emt 0:02:21]} 22. Qc4 {[%emt 0:02:35]} Nb6 {[%emt 0:02:26]} 23. Qe2 {[%emt 0:00:14]} Qd5 {[%emt 0:03:48]} 24. Bf4 {[%emt 0:01:54]} Ra8 {[%emt 0:04:11]} 25. Nxb7 {[%emt 0:01:58]} Rfe8 {[%emt 0:05:05]} 26. Na5 {[%emt 0:04:46]} Qb5 {[%emt 0:01:03]} 27. Qe4 {[%emt 0:04:06]} Nd5 {[%emt 0:04:09]} 28. Rxc6 {[%emt 0:01:03]} Nxf4 {[%emt 0:03:24]} 29. Qxf4 {[%emt 0:00:26]} Qe2 {[%emt 0:00:07]} 30. Rdc1 {[%emt 0:00:58]} Bf6 {[%emt 0:01:37]} 31. Qe3 {[%emt 0:01:12]} Qb2 {[%emt 0:00:42]} 32. R6c4 {[%emt 0:01:17]} e5 {[%emt 0:02:05]} 33. dxe5 {[%emt 0:02:06]} Rxe5 {[%emt 0:00:25]} 34. Qb3 {[%emt 0:02:10]} Re2 {[%emt 0:02:32]} 35. R4c2 {[%emt 0:00:13]} Qxb3 {[%emt 0:01:18]} 36. Nxb3 {[%emt 0:00:09]} Rae8 {[%emt 0:00:03]} 37. Rxe2 {[%emt 0:01:42]} Rxe2 {[%emt 0:00:24]} 38. Rc6 {[%emt 0:00:25]} Kg7 {[%emt 0:01:30]} 39. Rxa6 {[%emt 0:01:05]} Rb2 {[%emt 0:00:04]} 40. Na5 {[%emt 0:00:00]} Bd4 {[%emt 0:00:00]} 41. Kg2 {[%emt 0:05:39]} Rxf2+ {[%emt 0:03:32]} 42. Kh3 {[%emt 0:00:10]} Ra2 {[%emt 0:01:25]} 43. Nc4 {[%emt 0:03:58]} Bg1 {[%emt 0:01:54]} 44. Kg4 {[%emt 0:02:17]} h5+ {[%emt 0:01:44]} 45. Kg5 {[%emt 0:10:27]} Rxh2 {[%emt 0:00:23]} 46. Ne5 {[%emt 0:01:54]} Rg2 {[%emt 0:00:21]} 47. g4 {[%emt 0:02:10]} Bd4 {[%emt 0:02:54]} 48. Nxg6 {[%emt 0:04:16]} fxg6 {[%emt 0:07:56]} 49. Rxg6+ {[%emt 0:00:07]} Kf7 {[%emt 0:00:04]} 50. Rc6 {[%emt 0:02:01]} Be3+ {[%emt 0:00:25]} 51. Kf5 {[%emt 0:01:00]} h4 {[%emt 0:01:14]} 52. Rc7+ {[%emt 0:00:57]} Ke8 {[%emt 0:00:39]} 53. Rh7 {[%emt 0:01:07]} Rh2 {[%emt 0:01:25]} 54. g5 {[%emt 0:00:49]} h3 {[%emt 0:04:06]} 55. g6 {[%emt 0:01:52]} Bd4 {[%emt 0:00:38]} 56. a4 {[%emt 0:01:09]} Rb2 {[%emt 0:01:00]} 57. Rxh3 {[%emt 0:00:31]} Rxb4 {[%emt 0:00:05]} 58. Rh4 {[%emt 0:00:10]} Rxa4 {[%emt 0:00:50]} 59. Re4+ {[%emt 0:03:44]} 1/2-1/2

[Event "WYCC 2018 G14"]
[Site "Halkidiki"]
[Date "2018.10.28"]
[Round "9"]
[White "Garifullina, Leya"]
[Black "Divya Deshmukh"]
[Result "1/2-1/2"]
[ECO "B01"]
[WhiteElo "2106"]
[BlackElo "2180"]
[Annotator "NA"]
[PlyCount "67"]
[EventDate "2018.10.20"]
[EventType "swiss"]
[EventCountry "GRE"]
[SourceTitle "playchess.com"]
[Source "ChessBase"]
[SourceQuality "1"]
[TimeControl "40/5400+30:1800+30"]

1. e4 {[%emt 0:00:00]} d5 {[%emt 0:00:00]} 2. exd5 {[%emt 0:00:00]} Nf6 {[%emt 0:00:00]} 3. Nf3 {[%emt 0:00:27]} Qxd5 {[%emt 0:00:00]} 4. d4 {[%emt 0:00:26]} Bg4 {[%emt 0:00:00]} 5. Be2 {[%emt 0:00:25]} Nc6 {[%emt 0:00:11]} 6. O-O {[%emt 0:00:21]} O-O-O {[%emt 0:00:08]} 7. c4 {[%emt 0:00:19]} Qf5 {[%emt 0:00:40]} 8. Be3 {[%emt 0:00:11]} e5 {[%emt 0:00:10]} 9. d5 {[%emt 0:00:31]} e4 {[%emt 0:00:26]} 10. Nd4 {[%emt 0:00:24]} Nxd4 {[%emt 0:00:14]} 11. Bxd4 {[%emt 0:00:06]} Bd6 {[%emt 0:00:10]} 12. Re1 {[%emt 0:00:56]} Rde8 {[%emt 0:47:18]} 13. Nd2 {[%emt 0:14:48]} Be5 {[%emt 0:10:33]} 14. Nf1 {[%emt 0:09:29]} Bxe2 {[%emt 0:02:05]} 15. Rxe2 {[%emt 0:00:16]} Kb8 {[%emt 0:01:51]} 16. a4 {[%emt 0:18:01]} Bxd4 {[%emt 0:06:53]} 17. Qxd4 {[%emt 0:02:39]} Qe5 {[%emt 0:00:02]} 18. Qxe5 {[%emt 0:03:28]} Rxe5 {[%emt 0:00:05]} 19. Rae1 {[%emt 0:00:39]} c6 {[%emt 0:03:56]} 20. dxc6 {[%emt 0:10:29]} bxc6 {[%emt 0:00:07]} 21. b4 {[%emt 0:05:25]} Rhe8 {[%emt 0:02:05]} 22. Rd1 {[%emt 0:07:02]} Kc7 {[%emt 0:00:12]} 23. Red2 {[%emt 0:01:53]} a6 {[%emt 0:01:57]} 24. Ne3 {[%emt 0:04:51]} Rb8 {[%emt 0:02:52]} 25. Nc2 {[%emt 0:01:23]} Re7 {[%emt 0:00:14]} 26. Rd6 {[%emt 0:02:56]} Rd7 {[%emt 0:10:24]} 27. Rxd7+ {[%emt 0:02:16]} Nxd7 {[%emt 0:00:06]} 28. Re1 {[%emt 0:00:55]} f5 {[%emt 0:00:27]} 29. f3 {[%emt 0:01:36]} Nf6 {[%emt 0:00:52]} 30. fxe4 {[%emt 0:02:50]} fxe4 {[%emt 0:00:35]} 31. Kf2 {[%emt 0:04:12]} Rd8 {[%emt 0:01:40]} 32. Ke2 {[%emt 0:00:51]} Rd3 {[%emt 0:05:02]} 33. Rb1 {[%emt 0:02:24]} Rc3 {[%emt 0:02:27]} 34. Ne3 1/2-1/2

[Event "WYCC 2018 G14"]
[Site "Halkidiki"]
[Date "2018.10.28"]
[Round "9"]
[White "Krasteva, Beloslava"]
[Black "Arauco Celestino, Arianna Sofia"]
[Result "1-0"]
[ECO "D31"]
[WhiteElo "2089"]
[BlackElo "1610"]
[Annotator "NA RC"]
[PlyCount "37"]
[EventDate "2018.10.20"]
[EventType "swiss"]
[EventCountry "GRE"]
[SourceTitle "playchess.com"]
[Source "ChessBase"]
[SourceQuality "1"]
[TimeControl "40/5400+30:1800+30"]

1. d4 {[%emt 0:00:00]} d5 {[%emt 0:02:53]} 2. c4 {[%emt 0:00:11]} e6 {[%emt 0:00:29]} 3. Nc3 {[%emt 0:00:26]} dxc4 {[%emt 0:00:25]} 4. e3 {[%emt 0:00:43]} a6 {[%emt 0:00:13]} 5. a4 {[%emt 0:03:23]} Bb4 {[%emt 0:00:16]} 6. Bxc4 {[%emt 0:00:58]} Nf6 {[%emt 0:02:34]} 7. Nf3 {[%emt 0:01:46]} c5 {[%emt 0:01:37]} 8. O-O {[%emt 0:01:55]} cxd4 {[%emt 0:03:08]} 9. exd4 {[%emt 0:02:41]} O-O {[%emt 0:07:11]} 10. Bg5 {[%emt 0:07:59]} Nc6 {[%emt 0:04:26]} 11. Rc1 {[%emt 0:03:30]} Rb8 {[%emt 0:22:22]} 12. Bd3 {[%emt 0:20:37]} Be7 {[%emt 0:02:48]} 13. Bf4 {[%emt 0:04:50]} Bd6 {[%emt 0:02:42]} 14. Ne5 {[%emt 0:01:23]} Qc7 {[%emt 0:06:45]} 15. Ne4 {[%emt 0:09:32]} Nxe4 {[%emt 0:03:22]} 16. Bxe4 {[%emt 0:00:06]} Bd7 {[%emt 0:00:13]} 17. b4 {[%emt 0:10:58]} f6 {[%emt 0:06:30]} 18. Qh5 {[%emt 0:04:09]} fxe5 {[%emt 0:08:34]} 19. Bxh7+ {[%emt 0:00:41]} 1-0

[Event "WYCC 2018 G14"]
[Site "Halkidiki"]
[Date "2018.10.28"]
[Round "9"]
[White "Mironenko, Galina"]
[Black "Lomaia, Diana"]
[Result "1-0"]
[ECO "E67"]
[WhiteElo "2053"]
[BlackElo "1876"]
[Annotator "NA"]
[PlyCount "61"]
[EventDate "2018.10.20"]
[EventType "swiss"]
[EventCountry "GRE"]
[SourceTitle "playchess.com"]
[Source "ChessBase"]
[SourceQuality "1"]
[TimeControl "40/5400+30:1800+30"]

1. Nf3 {[%emt 0:00:00]} Nf6 {[%emt 0:00:00]} 2. d4 {[%emt 0:00:00]} g6 {[%emt 0:00:00]} 3. c4 {[%emt 0:00:00]} Bg7 {[%emt 0:00:17]} 4. g3 {[%emt 0:00:00]} O-O {[%emt 0:00:37]} 5. Bg2 {[%emt 0:00:06]} d6 {[%emt 0:00:40]} 6. O-O {[%emt 0:00:20]} Nbd7 {[%emt 0:00:46]} 7. Nc3 {[%emt 0:00:18]} e5 {[%emt 0:00:46]} 8. b3 {[%emt 0:00:17]} c6 {[%emt 0:01:26]} 9. e4 {[%emt 0:00:36]} exd4 {[%emt 0:07:38]} 10. Nxd4 {[%emt 0:00:14]} Nc5 {[%emt 0:00:59]} 11. f3 {[%emt 0:01:32]} Qb6 {[%emt 0:05:55]} 12. Be3 {[%emt 0:06:07]} Rd8 {[%emt 0:10:08]} 13. Qc2 {[%emt 0:09:13]} a5 {[%emt 0:02:05]} 14. Rab1 {[%emt 0:05:36]} Qc7 {[%emt 0:11:12]} 15. Rfd1 {[%emt 0:07:01]} Nfd7 {[%emt 0:05:00]} 16. f4 {[%emt 0:04:14]} Re8 {[%emt 0:05:50]} 17. Bf2 {[%emt 0:03:56]} Nf8 {[%emt 0:07:46]} 18. h3 {[%emt 0:10:58]} h5 {[%emt 0:02:25]} 19. Qd2 {[%emt 0:05:21]} Be6 {[%emt 0:11:04]} 20. f5 {[%emt 0:12:24]} Bd7 {[%emt 0:02:07]} 21. g4 {[%emt 0:02:37]} hxg4 {[%emt 0:00:52]} 22. hxg4 {[%emt 0:00:37]} Be5 {[%emt 0:01:39]} 23. Nde2 {[%emt 0:04:28]} Rad8 {[%emt 0:03:40]} 24. Bh4 {[%emt 0:02:29]} Ra8 {[%emt 0:01:49]} 25. Bf3 {[%emt 0:02:13]} Nh7 {[%emt 0:01:32]} 26. Kg2 {[%emt 0:02:53]} Kg7 {[%emt 0:04:52]} 27. Rh1 {[%emt 0:01:05]} Kg8 {[%emt 0:06:03]} 28. Bg3 {[%emt 0:03:51]} Bxg3 {[%emt 0:02:57]} 29. Nxg3 {[%emt 0:01:06]} Bc8 {[%emt 0:03:39]} 30. Qh6 {[%emt 0:01:03]} f6 {[%emt 0:00:34]} 31. Qxg6+ {[%emt 0:00:36]} 1-0

[Event "WYCC 2018 G14"]
[Site "Halkidiki"]
[Date "2018.10.28"]
[Round "9"]
[White "Wikar, Martyna"]
[Black "De Rycke, Tyani"]
[Result "1-0"]
[ECO "B40"]
[WhiteElo "2024"]
[BlackElo "1758"]
[Annotator "NA"]
[PlyCount "87"]
[EventDate "2018.10.20"]
[EventType "swiss"]
[EventCountry "GRE"]
[SourceTitle "playchess.com"]
[Source "ChessBase"]
[SourceQuality "1"]
[TimeControl "40/5400+30:1800+30"]

1. e4 {[%emt 0:00:00]} c5 {[%emt 0:00:00]} 2. Nf3 {[%emt 0:00:00]} e6 {[%emt 0:00:00]} 3. d4 {[%emt 0:00:00]} cxd4 {[%emt 0:00:00]} 4. Nxd4 {[%emt 0:00:00]} Nf6 {[%emt 0:00:00]} 5. Nc3 {[%emt 0:00:09]} Nc6 {[%emt 0:00:06]} 6. Ndb5 {[%emt 0:00:15]} Bb4 {[%emt 0:00:17]} 7. Bf4 {[%emt 0:00:08]} Bxc3+ {[%emt 0:01:19]} 8. Nxc3 {[%emt 0:05:05]} d5 {[%emt 0:00:14]} 9. exd5 {[%emt 0:01:27]} exd5 {[%emt 0:00:08]} 10. Bd3 {[%emt 0:02:35]} O-O {[%emt 0:00:22]} 11. O-O {[%emt 0:00:35]} d4 {[%emt 0:01:05]} 12. Ne4 {[%emt 0:02:47]} Nd5 {[%emt 0:02:17]} 13. Bg3 {[%emt 0:05:26]} f5 {[%emt 0:00:28]} 14. Nd6 {[%emt 0:05:51]} f4 {[%emt 0:01:33]} 15. Bxh7+ {[%emt 0:07:55]} Kxh7 {[%emt 0:04:04]} 16. Qh5+ {[%emt 0:00:15]} Kg8 {[%emt 0:00:05]} 17. Qxd5+ {[%emt 0:00:09]} Kh7 {[%emt 0:00:07]} 18. Qe4+ {[%emt 0:05:56]} g6 {[%emt 0:16:53]} 19. Bxf4 {[%emt 0:00:16]} Qf6 {[%emt 0:05:15]} 20. Bg3 {[%emt 0:01:13]} Kg8 {[%emt 0:04:47]} 21. Rfe1 {[%emt 0:01:52]} Bd7 {[%emt 0:10:27]} 22. Rad1 {[%emt 0:03:48]} b6 {[%emt 0:04:18]} 23. a3 {[%emt 0:02:33]} Rad8 {[%emt 0:01:30]} 24. h3 {[%emt 0:03:14]} a6 {[%emt 0:04:34]} 25. Qd5+ {[%emt 0:02:02]} Kh7 {[%emt 0:00:39]} 26. Rd3 {[%emt 0:03:15]} Qg7 {[%emt 0:12:35]} 27. Be5 {[%emt 0:08:02]} Nxe5 {[%emt 0:02:12]} 28. Qxe5 {[%emt 0:00:48]} Bf5 {[%emt 0:05:54]} 29. Rxd4 {[%emt 0:02:24]} Qxe5 {[%emt 0:02:27]} 30. Rxe5 {[%emt 0:00:07]} Bxc2 {[%emt 0:00:16]} 31. Re2 {[%emt 0:02:22]} Bb1 {[%emt 0:02:24]} 32. Re7+ {[%emt 0:01:59]} Kh6 {[%emt 0:00:52]} 33. g3 {[%emt 0:01:21]} Kg5 {[%emt 0:06:01]} 34. Ne4+ {[%emt 0:05:23]} Kh6 {[%emt 0:01:03]} 35. Rxd8 {[%emt 0:00:28]} Rxd8 {[%emt 0:00:11]} 36. Nc3 {[%emt 0:00:38]} Bf5 {[%emt 0:01:09]} 37. g4 {[%emt 0:00:38]} Bc8 {[%emt 0:02:03]} 38. Kg2 {[%emt 0:01:53]} b5 {[%emt 0:01:21]} 39. Kg3 {[%emt 0:02:48]} Rd3+ {[%emt 0:01:39]} 40. f3 {[%emt 0:00:00]} Rd2 {[%emt 0:00:00]} 41. Ne4 {[%emt 0:01:46]} Rd7 {[%emt 0:01:37]} 42. g5+ {[%emt 0:00:27]} Kh5 {[%emt 0:00:09]} 43. h4 {[%emt 0:00:34]} Rxe7 {[%emt 0:00:26]} 44. Nf6# {[%emt 0:00:05]} 1-0

[Event "WYCC 2018 G14"]
[Site "Halkidiki"]
[Date "2018.10.28"]
[Round "9"]
[White "Toncheva, Nadya"]
[Black "Velea, Anne-Marie"]
[Result "1/2-1/2"]
[ECO "D31"]
[WhiteElo "2002"]
[BlackElo "1859"]
[Annotator "NA"]
[PlyCount "84"]
[EventDate "2018.10.20"]
[EventType "swiss"]
[EventCountry "GRE"]
[SourceTitle "playchess.com"]
[Source "ChessBase"]
[SourceQuality "1"]
[TimeControl "40/5400+30:1800+30"]

1. d4 {[%emt 0:00:53]} d5 {[%emt 0:00:00]} 2. c4 {[%emt 0:00:05]} e6 {[%emt 0:00:00]} 3. Nc3 {[%emt 0:00:05]} Be7 {[%emt 0:00:00]} 4. cxd5 {[%emt 0:00:10]} exd5 {[%emt 0:00:00]} 5. Bf4 {[%emt 0:00:05]} c6 {[%emt 0:00:00]} 6. e3 {[%emt 0:00:07]} Bf5 {[%emt 0:00:04]} 7. Nge2 {[%emt 0:01:18]} Nf6 {[%emt 0:02:31]} 8. Ng3 {[%emt 0:00:51]} Bg6 {[%emt 0:01:01]} 9. Bd3 {[%emt 0:04:10]} Bxd3 {[%emt 0:07:17]} 10. Qxd3 {[%emt 0:00:11]} g6 {[%emt 0:06:53]} 11. f3 {[%emt 0:08:49]} Nbd7 {[%emt 0:11:26]} 12. O-O {[%emt 0:06:47]} O-O {[%emt 0:07:22]} 13. Rad1 {[%emt 0:13:12]} Qb6 {[%emt 0:12:39]} 14. Kh1 {[%emt 0:09:00]} Rad8 {[%emt 0:05:47]} 15. e4 {[%emt 0:02:06]} Rc8 16. e5 {[%emt 0:05:05]} Ne8 {[%emt 0:16:43]} 17. Bh6 {[%emt 0:01:29]} Ng7 {[%emt 0:00:10]} 18. f4 {[%emt 0:00:24]} f5 {[%emt 0:01:12]} 19. Nge2 {[%emt 0:05:04]} Rf7 {[%emt 0:01:43]} 20. Bxg7 {[%emt 0:02:25]} Rxg7 {[%emt 0:00:08]} 21. Qf3 {[%emt 0:00:44]} Nf8 {[%emt 0:04:27]} 22. Rc1 {[%emt 0:06:48]} Re8 {[%emt 0:00:47]} 23. Na4 {[%emt 0:04:24]} Qb4 {[%emt 0:02:21]} 24. b3 {[%emt 0:06:24]} Ne6 {[%emt 0:00:58]} 25. Rfd1 {[%emt 0:00:57]} Qa5 {[%emt 0:01:43]} 26. g4 {[%emt 0:02:20]} Rf8 {[%emt 0:01:37]} 27. g5 {[%emt 0:03:34]} Kf7 {[%emt 0:02:05]} 28. Kg2 {[%emt 0:01:07]} h6 {[%emt 0:03:26]} 29. h4 {[%emt 0:01:15]} Rh7 {[%emt 0:02:00]} 30. Rh1 {[%emt 0:03:23]} Rfh8 {[%emt 0:02:51]} 31. Qf2 {[%emt 0:01:51]} Qd2 {[%emt 0:03:05]} 32. Nac3 {[%emt 0:01:02]} Qd3 {[%emt 0:01:31]} 33. Rh3 {[%emt 0:01:23]} Qa6 {[%emt 0:01:03]} 34. Rch1 {[%emt 0:01:02]} h5 {[%emt 0:01:54]} 35. Qf3 {[%emt 0:02:09]} Rc8 {[%emt 0:00:24]} 36. Qd3 {[%emt 0:01:54]} Qxd3 {[%emt 0:01:41]} 37. Rxd3 {[%emt 0:00:03]} Rhh8 {[%emt 0:00:12]} 38. Rb1 {[%emt 0:00:42]} Rc7 {[%emt 0:00:29]} 39. b4 {[%emt 0:00:11]} a6 {[%emt 0:00:13]} 40. Kf3 {[%emt 0:00:00]} Rhc8 {[%emt 0:00:00]} 41. Nc1 {[%emt 0:07:33]} Ke8 {[%emt 0:03:41]} 42. Ke3 {[%emt 0:00:33]} b5 {[%emt 0:02:49] Ke4} 1/2-1/2